fUST/lending_fUST_20240906
["ID","MTS","AMOUNT","RATE_DAILY","PERIOD"]
[337266218,1725559840770,-3000.0,0.0002111,2]
[337266219,1725559840779,-1998.84117913,0.0002111,2]
[337266220,1725559840789,-3000.0,0.0002112,2]
[337266221,1725559840799,-3000.0,0.0002113,2]
[337266222,1725559840809,-3000.0,0.0002114,2]
[337266223,1725559840818,-3000.0,0.0002115,2]
[337266224,1725559840827,-136743.588511,0.00021157,3]
[337266225,1725559840848,-7833.11408057,0.00021157,2]
[337266226,1725559840860,-191343.37407327,0.00021157,3]
[337266227,1725559840875,-38340.15867653,0.00021157,3]
[337266273,1725559843860,-334.0510005,0.00021157,3]
[337266275,1725559843872,-43469.5932707,0.00021157,3]
[337266278,1725559843883,-7833.11408057,0.00021157,2]
[337266280,1725559843893,-500.0,0.0002116,2]
[337266282,1725559843903,-500.0,0.0002116,2]
[337266284,1725559843913,-500.0,0.0002116,2]
[337266286,1725559843924,-500.0,0.0002116,2]
[337266288,1725559843934,-500.0,0.0002116,2]
[337266290,1725559843943,-500.0,0.0002116,2]
[337266292,1725559843953,-500.0,0.0002116,2]
[337266294,1725559843963,-580.75634186,0.0002116,2]
[337266296,1725559843973,-3000.0,0.0002116,2]
[337266298,1725559843983,-7833.11408057,0.00021162,2]
[337266300,1725559843992,-272.11569746,0.00021165,2]
[337266302,1725559844002,-500.0,0.00021165,2]
[337266304,1725559844012,-500.0,0.00021165,2]
[337266306,1725559844022,-500.0,0.00021165,2]
[337266308,1725559844032,-183.88750292,0.00021165,2]
[337266310,1725559844042,-500.0,0.00021165,2]
[337266312,1725559844051,-500.0,0.00021165,2]
[337266314,1725559844061,-500.0,0.00021165,2]
[337266316,1725559844071,-500.0,0.00021165,2]
[337266318,1725559844082,-193.46242199,0.00021165,2]
[337266320,1725559844091,-500.0,0.00021165,2]
[337266323,1725559844105,-500.0,0.00021165,2]
[337266325,1725559844115,-500.0,0.00021165,2]
[337266327,1725559844125,-500.0,0.00021165,2]
[337266329,1725559844138,-40235.8450959,0.00021166,15]
[337266331,1725559844148,-246.011452,0.00021166,2]
[337266333,1725559844158,-151.0,0.00021167,2]
[337266335,1725559844168,-151.0,0.00021167,2]
[337266337,1725559844181,-238.230992,0.00021167,2]
[337266339,1725559844191,-240.503977,0.00021167,2]
[337266341,1725559844201,-151.0,0.00021167,2]
[337266343,1725559844213,-579.46232,0.00021167,2]
[337266345,1725559844223,-579.46232,0.00021167,2]
[337266347,1725559844234,-1382.788993,0.00021167,2]
[337266349,1725559844244,-1382.788993,0.00021167,2]
[337266352,1725559844254,-151.0,0.00021167,2]
[337266354,1725559844264,-151.0,0.00021167,2]
[337266356,1725559844274,-151.0,0.00021167,2]
[337266357,1725559844284,-151.0,0.00021167,2]
[337266359,1725559844294,-160.503361,0.00021167,2]
[337266361,1725559844304,-155.411479,0.00021167,2]
[337266364,1725559844316,-155.411479,0.00021167,2]
[337266366,1725559844326,-3000.0,0.0002117,2]
[337266368,1725559844336,-500.0,0.00021173,2]
[337266370,1725559844346,-500.0,0.00021173,2]
[337266372,1725559844356,-500.95369939,0.00021173,2]
[337266374,1725559844365,-500.0,0.00021173,2]
[337266376,1725559844374,-500.0,0.00021173,2]
[337266378,1725559844386,-154.45372973,0.00021173,2]
[337266380,1725559844395,-150.196,0.00021177,2]
[337266382,1725559844405,-150.0,0.00021177,2]
[337266384,1725559844415,-150.0,0.00021177,2]
[337266386,1725559844426,-150.0,0.00021177,2]
[337266388,1725559844437,-523.0,0.00021177,2]
[337266390,1725559844448,-3000.0,0.0002118,2]
[337266392,1725559844459,-3000.0,0.0002119,2]
[337266394,1725559844470,-1109.282731,0.0002119,2]
[337266397,1725559844480,-151.0,0.0002119,2]
[337266399,1725559844490,-186.237086,0.0002119,2]
[337266401,1725559844499,-186.237086,0.0002119,2]
[337266403,1725559844509,-151.4766,0.0002119,2]
[337266405,1725559844519,-187.204501,0.0002119,2]
[337266406,1725559844529,-187.204501,0.0002119,2]
[337266409,1725559844539,-579.46232,0.0002119,2]
[337266411,1725559844548,-579.46232,0.0002119,2]
[337266413,1725559844558,-151.0,0.0002119,2]
[337266415,1725559844568,-1382.788993,0.0002119,2]
[337266417,1725559844578,-1382.788993,0.0002119,2]
[337266419,1725559844588,-161.53345442,0.00021192,2]
[337266421,1725559844597,-1142.1030253,0.00021192,2]
[337266423,1725559844607,-155.0,0.000212,5]
[337266425,1725559844616,-2636.371876,0.000212,18]
[337266427,1725559844626,-233.154555,0.000212,2]
[337266429,1725559844636,-263.800975,0.000212,5]
[337266431,1725559844646,-151.0,0.000212,2]
[337266433,1725559844655,-151.0,0.000212,2]
[337266435,1725559844666,-153.0,0.000212,2]
[337266437,1725559844676,-153.0,0.000212,2]
[337266439,1725559844685,-1930.320668,0.000212,2]
[337266441,1725559844695,-151.0,0.000212,2]
[337266443,1725559844705,-1930.320668,0.000212,2]
[337266445,1725559844716,-3000.0,0.000212,2]
[337266447,1725559844725,-150.112233,0.000212,2]
[337266449,1725559844735,-150.112233,0.000212,4]
[337266451,1725559844745,-150.112233,0.000212,2]
[337266453,1725559844754,-150.112233,0.000212,3]
[337266455,1725559844765,-150.112233,0.000212,2]
[337266457,1725559844775,-156.787429,0.000212,3]
[337266487,1725559845059,-514.0,0.000212,2]
[337266489,1725559845076,-3000.0,0.0002121,2]
[337266491,1725559845086,-151.0,0.0002121,2]
[337266493,1725559845096,-151.0,0.0002121,2]
[337266495,1725559845106,-273.596344,0.0002121,2]
[337266497,1725559845116,-273.596344,0.0002121,2]
[337266498,1725559845126,-500.0,0.00021211,2]
[337266500,1725559845139,-5001.26276275,0.00021212,5]
[337266502,1725559845148,-500.0,0.00021212,2]
[337266504,1725559845158,-3000.0,0.0002122,2]
[337266506,1725559845167,-151.0,0.0002123,2]
[337266508,1725559845177,-3000.0,0.0002123,2]
[337266510,1725559845187,-3000.0,0.0002124,2]
[337266511,1725559845198,-151.0,0.0002124,2]
[337266512,1725559845208,-151.0,0.0002124,2]
[337266513,1725559845218,-151.0,0.0002124,2]
[337266514,1725559845228,-155.411479,0.0002124,2]
[337266515,1725559845237,-155.411479,0.0002124,2]
[337266516,1725559845247,-3000.0,0.0002125,2]
[337266517,1725559845257,-3000.0,0.0002126,2]
[337266518,1725559845266,-209.376102,0.00021262,2]
[337266519,1725559845276,-3000.0,0.0002127,2]
[337266520,1725559845286,-3000.0,0.0002128,2]
[337266521,1725559845296,-1109.282731,0.0002128,2]
[337266522,1725559845306,-1109.282731,0.0002128,2]
[337266523,1725559845319,-186.237086,0.0002128,2]
[337266524,1725559845328,-186.237086,0.0002128,2]
[337266525,1725559845338,-186.237086,0.0002128,2]
[337266526,1725559845348,-186.237086,0.0002128,2]
[337266527,1725559845357,-187.204501,0.0002128,2]
[337266528,1725559845366,-187.204501,0.0002128,2]
[337266530,1725559845376,-187.204501,0.0002128,2]
[337266532,1725559845385,-187.204501,0.0002128,2]
[337266533,1725559845394,-579.46232,0.0002128,2]
[337266535,1725559845405,-579.46232,0.0002128,2]
[337266538,1725559845414,-579.46232,0.0002128,2]
[337266540,1725559845424,-579.46232,0.0002128,2]
[337266542,1725559845434,-151.0,0.0002128,2]
[337266544,1725559845444,-154.309259,0.0002128,2]
[337266546,1725559845453,-1382.788993,0.0002128,2]
[337266548,1725559845463,-1382.788993,0.0002128,2]
[337266550,1725559845472,-1382.788993,0.0002128,2]
[337266552,1725559845482,-1382.788993,0.0002128,2]
[337266554,1725559845492,-3000.0,0.0002129,2]
[337266556,1725559845502,-3000.0,0.000213,2]
[337266558,1725559845512,-151.0,0.0002131,2]
[337266560,1725559845521,-3000.0,0.0002131,2]
[337266562,1725559845531,-1930.320668,0.0002132,2]
[337266564,1725559845541,-151.0,0.0002132,2]
[337266566,1725559845550,-1930.320668,0.0002132,2]
[337266568,1725559845562,-3000.0,0.0002132,2]
[337266570,1725559845571,-151.0,0.0002132,2]
[337266572,1725559845581,-151.0,0.0002132,2]
[337266574,1725559845592,-273.596344,0.0002132,2]
[337266576,1725559845602,-273.596344,0.0002132,2]
[337266578,1725559845613,-3000.0,0.0002133,2]
[337266580,1725559845623,-3000.0,0.0002134,2]
[337266582,1725559845634,-186.213551,0.0002135,2]
[337266585,1725559845645,-3000.0,0.0002135,2]
[337266587,1725559845656,-3000.0,0.0002136,2]
[337266589,1725559845666,-12975.63072423,0.0002137,15]
[337266591,1725559845676,-3000.0,0.0002137,2]
[337266593,1725559845686,-151.0,0.0002137,2]
[337266595,1725559845695,-151.0,0.0002137,2]
[337266596,1725559845705,-151.0,0.0002137,2]
[337266598,1725559845714,-155.411479,0.0002137,2]
[337266600,1725559845724,-155.411479,0.0002137,2]
[337266602,1725559845733,-3000.0,0.0002138,2]
[337266604,1725559845743,-3000.0,0.0002139,2]
[337266606,1725559845753,-35808.90686111,0.000214,2]
[337266609,1725559845767,-3256.67374573,0.000214,2]
[337266611,1725559845778,-151.0,0.000214,2]
[337266613,1725559845787,-1930.320668,0.000214,2]
[337266615,1725559845797,-1930.320668,0.000214,2]
[337266617,1725559845808,-271.760275,0.000214,2]
[337266619,1725559845817,-1930.320668,0.000214,2]
[337266621,1725559845827,-1843.45098504,0.000214,2]
[337266706,1725559990679,242.4110591,0.00020279,2]
[337266708,1725560173077,157.813356,0.00020086,2]
[337266709,1725560236187,3000.0,0.00020072,2]
[337266710,1725560336304,179.377531,0.00019812,2]
[337266713,1725560634914,3493.60909957,0.000205,2]
[337266718,1725560921835,610.30397261,0.00014,4]
[337266721,1725560924405,7603.88369633,0.00020377,2]
[337266722,1725560925273,63892.3594621,0.0002,2]
[337266740,1725561032746,-465.00064531,0.00020606,2]
[337266741,1725561032757,-104.9587766,0.00020986,2]
[337266742,1725561032772,-153.6776614,0.00020986,2]
[337266743,1725561032782,-3000.0,0.000211,2]
[337266744,1725561032791,-86.25427609,0.0002111,2]
[337266813,1725561038824,-2913.74572391,0.0002111,2]
[337266814,1725561038836,-300.0,0.00021119,2]
[337266815,1725561038848,-300.0,0.00021119,2]
[337266816,1725561038859,-370.0752104,0.0002112,2]
[337266817,1725561039182,-448.92070147,0.0002112,2]
[337266847,1725561040761,-2181.00408813,0.0002112,2]
[337266849,1725561040772,-3000.0,0.0002113,2]
[337266851,1725561040781,-5282.789497,0.0002114,2]
[337266853,1725561040791,-523.0,0.00021181,2]
[337266855,1725561040801,-150.0,0.00021181,2]
[337266857,1725561040810,-357.82351584,0.00021279,2]
[337266860,1725561040820,-6816.21518689,0.0002129,3]
[337266862,1725561040830,-500.0,0.00021334,2]
[337266864,1725561040840,-500.0,0.0002134,2]
[337266866,1725561040850,-856.57726898,0.00021399,2]
[337266868,1725561040860,-151.0,0.000214,2]
[337266870,1725561040870,-8583.5690594,0.0002144,2]
[337266873,1725561040886,-11363.87448581,0.0002144,2]
[337269505,1725561124045,470.29,0.0002044,7]
[337269506,1725561189632,500.0,0.0002044,7]
[337269507,1725561190318,500.0,0.0002044,7]
[337269508,1725561191084,500.0,0.0002044,7]
[337269509,1725561191852,500.0,0.0002044,7]
[337269510,1725561192629,500.0,0.0002044,7]
[337269511,1725561193383,500.0,0.0002044,7]
[337269512,1725561194147,500.0,0.0002044,7]
[337269513,1725561194910,500.0,0.0002044,7]
[337269514,1725561195713,500.0,0.0002044,7]
[337269515,1725561196495,500.0,0.0002044,7]
[337269516,1725561197245,500.0,0.0002044,7]
[337269517,1725561198022,500.0,0.0002044,7]
[337269518,1725561199007,500.0,0.0002044,7]
[337269519,1725561199541,500.0,0.0002044,7]
[337269520,1725561200292,500.0,0.0002044,7]
[337269521,1725561201064,500.0,0.0002044,7]
[337269522,1725561201794,500.0,0.0002044,7]
[337269523,1725561202591,500.0,0.0002044,7]
[337269524,1725561203338,500.0,0.0002044,7]
[337269525,1725561204090,500.0,0.0002044,7]
[337269526,1725561204857,500.0,0.0002044,7]
[337269527,1725561205628,500.0,0.0002044,7]
[337269528,1725561206375,500.0,0.0002044,7]
[337269529,1725561207173,500.0,0.0002044,7]
[337269530,1725561207932,575.41,0.0002044,7]
[337269531,1725561266921,4098.55318133,0.0002033,2]
[337269532,1725561294166,999.0,0.0002,2]
[337269534,1725561571473,250.0,0.00020366,2]
[337269535,1725561737980,-8197.10636267,0.0002083,2]
[337269536,1725561738005,-245.704616,0.00020986,2]
[337269537,1725561738032,-150.0,0.000211,2]
[337269538,1725561738059,-500.0,0.0002134,2]
[337269539,1725561738086,-3731.53446862,0.0002134,2]
[337269540,1725561738112,-300.0,0.00021389,2]
[337269541,1725561738138,-300.0,0.00021389,2]
[337269542,1725561738163,-2054.38447183,0.0002139,2]
[337269543,1725561738188,-357.82351584,0.0002139,2]
[337269544,1725561738215,-14294.80783563,0.0002139,3]
[337269545,1725561738239,-2054.38447181,0.00021393,2]
[337269546,1725561738262,-2054.38447181,0.00021395,2]
[337269547,1725561738286,-2054.38447181,0.00021398,2]
[337269548,1725561738309,-2054.38447181,0.000214,2]
[337269549,1725561738332,-856.57726898,0.00021439,2]
[337269550,1725561738355,-13704.75254869,0.0002144,2]
[337269551,1725561738379,-500.0,0.0002144,2]
[337269552,1725561738401,-500.0,0.00021473,2]
[337269553,1725561738424,-500.0,0.00021473,2]
[337269554,1725561738447,-158.70300783,0.00021473,2]
[337269555,1725561738470,-500.0,0.00021473,2]
[337269556,1725561738493,-500.0,0.00021489,2]
[337269557,1725561738516,-190.48098822,0.00021489,2]
[337269558,1725561738540,-500.0,0.00021489,2]
[337269559,1725561738565,-500.0,0.00021489,2]
[337269560,1725561738591,-500.0,0.00021489,2]
[337269561,1725561738614,-328.72125205,0.00021489,2]
[337269562,1725561738638,-500.0,0.00021489,2]
[337269563,1725561738663,-500.0,0.00021489,2]
[337269564,1725561738688,-500.0,0.00021489,2]
[337269565,1725561738712,-500.0,0.00021489,2]
[337269566,1725561738737,-296.90759054,0.00021489,2]
[337269567,1725561738764,-500.0,0.00021489,2]
[337269568,1725561738788,-397.5937932,0.00021489,2]
[337269569,1725561738812,-500.0,0.00021489,2]
[337269570,1725561738839,-500.0,0.00021489,2]
[337269571,1725561738862,-500.0,0.00021489,2]
[337269572,1725561738886,-500.0,0.00021489,2]
[337269573,1725561738911,-500.0,0.00021489,2]
[337269574,1725561738937,-500.0,0.00021489,2]
[337269575,1725561738961,-500.0,0.00021489,2]
[337269576,1725561738985,-500.0,0.00021489,2]
[337269577,1725561739009,-450.0,0.00021489,2]
[337269578,1725561739037,-20117.92254795,0.0002149,15]
[337269579,1725561739059,-6487.81536211,0.0002149,15]
[337269580,1725561739085,-116269.239979,0.0002149,3]
[337269581,1725561739109,-267428.3865036,0.0002149,2]
[337269583,1725562118101,250.0,0.00020409,2]
[337269584,1725562142607,3000.0,0.00020257,2]
[337269746,1725562239221,-233.419385,0.00020986,2]
[337269747,1725562239232,-3000.0,0.000211,2]
[337269748,1725562239242,-3000.0,0.0002111,2]
[337269749,1725562239255,-300.0,0.00021119,2]
[337269750,1725562239265,-237.0,0.00021119,2]
[337269751,1725562239276,-4313.793585,0.0002112,2]
[337269752,1725562239286,-523.0,0.00021199,2]
[337269753,1725562239296,-152.278,0.00021199,2]
[337269754,1725562239306,-410.83980797,0.00021199,2]
[337269772,1725562239953,-7489.56119203,0.00021199,2]
[337269773,1725562239963,-168.331,0.00021199,2]
[337269774,1725562239975,-150.349,0.00021199,2]
[337269775,1725562239985,-213.547,0.00021199,2]
[337269776,1725562239997,-3265.09266006,0.0002134,2]
[337269777,1725562240009,-1682.82682466,0.00021389,2]
[337269778,1725562240019,-921.2204091,0.0002139,2]
[337269779,1725562240030,-15011.05053039,0.0002139,3]
[337269781,1725562240044,-1977.6301833,0.0002139,3]
[337269828,1725563432041,-465.00003226,0.00020555,2]
[337269829,1725563432054,-221.748415,0.00020986,2]
[337269830,1725563432064,-171.82060663,0.00021,21]
[337269881,1725563446196,-828.17939337,0.00021,21]
[337269882,1725563446206,-150.0,0.000211,2]
[337269883,1725563446216,-500.0,0.0002116,2]
[337269884,1725563446227,-300.0,0.00021198,2]
[337269885,1725563446237,-150.0,0.00021199,2]
[337269886,1725563446248,-151.002,0.00021199,2]
[337269887,1725563446258,-250.0,0.00021199,2]
[337269888,1725563446269,-150.605,0.00021199,2]
[337269889,1725563446279,-250.098,0.00021199,2]
[337269890,1725563446288,-523.0,0.00021199,2]
[337269891,1725563446298,-150.0,0.00021199,2]
[337269892,1725563446308,-2856.95607757,0.000213,2]
[337269893,1725563446319,-1682.82682466,0.00021344,2]
[337269894,1725563446331,-1682.82682465,0.00021346,2]
[337269895,1725563446343,-1682.82682465,0.00021349,2]
[337269896,1725563446354,-1682.82682465,0.00021351,2]
[337269897,1725563446363,-1682.82682465,0.00021353,2]
[337269898,1725563446375,-1634.64930995,0.00021363,15]
[337269899,1725563446392,-300.78721,0.00021363,15]
[337269900,1725563446419,-411.11179919,0.00021363,15]
[337269909,1725564521393,1410.5297035,0.00014,2]
[337269910,1725564521961,28033.23292012,0.0001,2]
[337270009,1725564638351,-210.660994,0.00020986,2]
[337270011,1725564638361,-150.0,0.00021212,2]
[337270013,1725564638370,-304.33900632,0.00021212,2]
[337270021,1725564638447,-218.66099368,0.00021212,2]
[337270023,1725564638458,-419.12036957,0.000213,2]
[337270026,1725564638469,-194.19294289,0.00021323,2]
[337270215,1725564758047,3000.0,0.00020355,2]
[337270216,1725564872710,24900.0,0.0002002,2]
[337270219,1725565151178,176.120434,0.00019755,2]
[337270220,1725565365284,250.0,0.00020337,2]
[337270221,1725565365672,250.0,0.00020393,2]
[337270222,1725565365884,250.0,0.00020448,2]
[337270258,1725565832365,-465.00000161,0.00020504,2]
[337270261,1725565832376,-250.0,0.00020504,2]
[337270262,1725565832387,-250.0,0.0002056,2]
[337270264,1725565832398,-250.0,0.00020616,2]
[337270266,1725565832408,-250.0,0.00020671,2]
[337270268,1725565832418,-250.0,0.00020727,2]
[337270271,1725565832428,-250.0,0.00020783,2]
[337270273,1725565832439,-250.0,0.00020839,2]
[337270275,1725565832448,-250.0,0.00020895,2]
[337270277,1725565832459,-250.0,0.0002095,2]
[337270279,1725565832468,-231.329181,0.00020986,2]
[337270281,1725565832478,-300.0,0.00020999,2]
[337270283,1725565832487,-153.0,0.00021,2]
[337270285,1725565832496,-405.8689842,0.00021,2]
[337270287,1725565832506,-208.1061349,0.00021,2]
[337270290,1725565832515,-153.0,0.00021,2]
[337270292,1725565832525,-208.1061349,0.00021,2]
[337270294,1725565832539,-153.0,0.00021,2]
[337270296,1725565832549,-208.1061349,0.00021,2]
[337270298,1725565832559,-153.0,0.00021,2]
[337270300,1725565832568,-208.1061349,0.00021,2]
[337270302,1725565832577,-153.0,0.00021,2]
[337270304,1725565832587,-208.1061349,0.00021,2]
[337270306,1725565832596,-153.0,0.00021,2]
[337270308,1725565832606,-208.1061349,0.00021,2]
[337270310,1725565832615,-277.1513394,0.00021,2]
[337270312,1725565832626,-208.1061349,0.00021,2]
[337270314,1725565832637,-208.1061349,0.00021,2]
[337270316,1725565832647,-250.0,0.00021006,2]
[337270319,1725565832658,-250.0,0.00021062,2]
[337270320,1725565832667,-250.0,0.00021118,2]
[337270323,1725565832677,-3009.47642264,0.00021173,2]
[337270325,1725565832688,-250.0,0.00021174,2]
[337270327,1725565832697,-250.0,0.00021229,2]
[337270329,1725565832707,-150.0,0.00021232,2]
[337270331,1725565832716,-523.0,0.00021232,2]
[337270333,1725565832728,-240.75,0.00021232,2]
[337270335,1725565832739,-153.05428364,0.00021273,2]
[337270337,1725565832749,-151.0,0.00021273,2]
[337270340,1725565832760,-10379.8362047,0.00021273,3]
[337270561,1725565840576,-150.0,0.00021232,2]
[337270563,1725565840587,-2070.63352149,0.00021273,15]
[337270565,1725565840597,-28186.4830816,0.00021273,3]
[337270567,1725565840609,-921.2204091,0.00021273,2]
[337270570,1725565840618,-153.05428362,0.00021276,2]
[337270572,1725565840629,-153.05428362,0.00021279,2]
[337270574,1725565840638,-153.05428362,0.00021282,2]
[337270576,1725565840648,-250.0,0.00021285,2]
[337270578,1725565840657,-151.0,0.00021304,2]
[337270580,1725565840669,-829.673396,0.00021304,2]
[337270582,1725565840679,-829.673396,0.00021304,2]
[337270584,1725565840689,-254.006526,0.00021304,2]
[337270586,1725565840698,-151.0,0.00021304,2]
[337270588,1725565840708,-151.0,0.00021304,2]
[337270590,1725565840717,-151.0,0.00021304,2]
[337270592,1725565840727,-151.0,0.00021304,2]
[337270594,1725565840737,-151.0,0.00021304,2]
[337270596,1725565840746,-1162.535885,0.00021304,2]
[337270598,1725565840755,-1162.535885,0.00021304,2]
[337270600,1725565840764,-151.0,0.00021304,2]
[337270602,1725565840774,-347.677392,0.00021304,2]
[337270605,1725565840784,-347.677392,0.00021304,2]
[337270607,1725565840795,-151.0,0.00021304,2]
[337270609,1725565840805,-151.0,0.00021304,2]
[337270611,1725565840815,-250.0,0.00021341,2]
[337270613,1725565840824,-580.10487643,0.00021362,2]
[337270615,1725565840835,-500.0,0.00021362,2]
[337270617,1725565840845,-222.83531338,0.00021362,2]
[337270619,1725565840855,-500.0,0.00021362,2]
[337270621,1725565840864,-500.0,0.00021362,2]
[337270623,1725565840874,-500.0,0.00021362,2]
[337270625,1725565840884,-500.0,0.00021362,2]
[337270627,1725565840894,-500.0,0.00021362,2]
[337270629,1725565840903,-500.0,0.00021362,2]
[337270631,1725565840912,-203.88745067,0.00021362,2]
[337270633,1725565840922,-151.0,0.00021362,2]
[337270635,1725565840932,-151.0,0.00021362,2]
[337270637,1725565840942,-10391.46127413,0.00021362,15]
[337270640,1725565840952,-110455.77798,0.00021363,3]
[337270642,1725565840962,-11629.13821614,0.00021363,2]
[337271069,1725566402533,250.0,0.00020404,2]
[337271094,1725567032431,-167.747514,0.00020699,2]
[337271095,1725567032441,-219.762721,0.00020986,2]
[337271096,1725567032450,-167.747514,0.00021044,2]
[337271097,1725567032460,-150.0,0.00021175,2]
[337271099,1725567032469,-523.0,0.00021175,2]
[337271100,1725567032478,-150.0,0.00021232,2]
[337271102,1725567032489,-2633.29186981,0.00021233,2]
[337271104,1725567032501,-300.0,0.00021299,2]
[337271106,1725567032510,-153.0,0.000213,2]
[337271107,1725567032521,-3628.41507513,0.000213,2]
[337271108,1725567032532,-31730.78623374,0.000213,3]
[337271109,1725567032547,-406.0734135,0.00021349,2]
[337271110,1725567032559,-500.0,0.00021349,2]
[337271111,1725567032569,-500.0,0.00021349,2]
[337271112,1725567032579,-500.0,0.00021349,2]
[337271113,1725567032588,-500.0,0.00021349,2]
[337271114,1725567032597,-255.98471936,0.00021349,2]
[337271115,1725567032606,-500.0,0.00021349,2]
[337271116,1725567032617,-500.0,0.00021349,2]
[337271117,1725567032627,-225.16244089,0.00021349,2]
[337271118,1725567032636,-5195.73063706,0.0002135,15]
[337271119,1725567032646,-18231.02052116,0.0002135,3]
[337271120,1725567032657,-28263.44889502,0.0002135,3]
[337271323,1725567040675,-1035.31676074,0.0002135,15]
[337271326,1725567040685,-290.54797821,0.0002135,3]
[337271864,1725567046606,-339.1717018,0.000213,2]
[337271865,1725567046619,-58205.74428761,0.0002135,3]
[337271866,1725567046628,-623.86032164,0.0002135,2]
[337271868,1725567175824,1509.4252531,0.0002035,2]
[337271869,1725567249344,666.05788,0.0002034,2]
[337271872,1725567611291,465.00000009,0.00020453,2]
[337271874,1725567868848,297.798477,0.00020233,2]
[337271877,1725568060365,225.990218,0.00020366,2]
[337271935,1725568231642,-167.747514,0.00020699,2]
[337271936,1725568231652,-219.762722,0.00020986,2]
[337271937,1725568231661,-443.55262212,0.0002121,2]
[337271938,1725568231670,-300.0,0.00021239,2]
[337271939,1725568231679,-523.0,0.0002127,2]
[337271940,1725568231689,-150.0,0.0002127,2]
[337271941,1725568231699,-153.0,0.000213,2]
[337271942,1725568231708,-153.0,0.000213,2]
[337271943,1725568231717,-153.0,0.000213,2]
[337271944,1725568231727,-153.0,0.000213,2]
[337271945,1725568231737,-127.69714188,0.000213,2]
[337271946,1725568231754,-25.30285812,0.000213,2]
[337271947,1725568231763,-153.0,0.000213,2]
[337271948,1725568231773,-1798.95706128,0.000213,2]
[337271949,1725568231782,-153.0,0.000213,2]
[337271950,1725568231791,-406.0734135,0.0002131,2]
[337271951,1725568231801,-500.0,0.0002131,2]
[337271952,1725568231811,-500.0,0.0002131,2]
[337271953,1725568231821,-500.0,0.0002131,2]
[337271954,1725568231831,-500.0,0.0002131,2]
[337271955,1725568231840,-255.98471936,0.0002131,2]
[337271956,1725568231850,-500.0,0.0002131,2]
[337271957,1725568231860,-500.0,0.0002131,2]
[337271958,1725568231870,-225.16244089,0.0002131,2]
[337271959,1725568231881,-5195.73063706,0.0002131,15]
[337271960,1725568231892,-517.65838037,0.0002131,15]
[337271961,1725568231902,-46168.09569961,0.00021311,3]
[337271968,1725568239832,-56881.72082094,0.00021311,3]
[337271980,1725568245822,-176546.99999996,0.00021311,3]
[337272008,1725569431924,-335.47651947,0.00020986,5]
[337272010,1725569431934,-208.774585,0.00020986,2]
[337272013,1725569431944,-2500.0,0.00021121,7]
[337272015,1725569431954,-300.0,0.0002118,2]
[337272017,1725569431965,-9788.5198953,0.00021181,3]
[337272039,1725569439894,-3041.4284523,0.0002117,2]
[337272040,1725569439905,-25860.55016394,0.00021181,3]
[337272068,1725569442822,-7535.44307737,0.00021181,3]
[337272070,1725569442834,-284.25138945,0.0002127,2]
[337272072,1725569442844,-500.0,0.0002127,2]
[337272074,1725569442854,-579.18930355,0.0002127,2]
[337272077,1725569442865,-500.0,0.0002127,2]
[337272079,1725569442875,-1079.63756816,0.0002127,15]
[337272081,1725569442889,-1518.22775037,0.0002127,15]
[337272083,1725569442900,-258.82919019,0.0002127,15]